bitfinex-derivatives/quotes_ETHF0:USTF0_20250316
["timestamp","ask_amount","ask_price","bid_price","bid_amount"]
[1742134786246,1.4416,1884.9,1884.8,1.06109]
[1742134786846,2.50264,1884.9,1884.8,1.06109]
[1742134787248,1.06109,1884.8,1884.7,1.7796]
[1742134787546,1.4416,1884.8,1884.7,5.3676]
[1742134787944,2.50269,1884.8,1884.7,5.3676]
[1742134788140,1.4416,1884.8,1884.7,5.3676]
[1742134788446,3.2078,1885.1,1884.7,0.7185]
[1742134788644,1.4416,1884.8,1884.7,1.77965]
[1742134791841,2.50269,1884.8,1884.7,1.77965]
[1742134792347,1.4416,1884.8,1884.7,1.77965]
[1742134794851,1.4416,1884.8,1884.7,5.36765]
[1742134795248,1.4416,1884.8,1884.7,1.77965]
[1742134798250,4.92796,1885.1,1885.0,1.06098]
[1742134798555,4.26873,1885.1,1885.0,1.06098]
[1742134799355,3.2078,1885.1,1885.0,1.06098]
[1742134799549,1.427,1885.1,1885.0,1.06098]
[1742134799853,1.427,1885.1,1885.0,4.26878]
[1742134801051,2.48793,1885.1,1885.0,4.26878]
[1742134801550,1.427,1885.1,1885.0,4.26878]
[1742134801950,2.48793,1885.1,1885.0,4.26878]
[1742134802151,1.06099,1885.0,1884.9,1.06099]
[1742134802452,4.63667,1885.0,1884.6,3.2078]
[1742134802658,1.06107,1884.9,1884.8,1.06107]
[1742134802856,1.06113,1884.8,1884.7,1.06113]
[1742134803057,1.77823,1884.8,1884.7,1.06113]
[1742134803261,0.7171,1884.8,1884.7,1.06113]
[1742134803649,2.0413,1884.8,1884.7,1.06113]
[1742134803851,1.3242,1884.8,1884.7,2.40353]
[1742134804352,1.3242,1884.8,1884.7,5.61133]
[1742134804853,1.77801,1885.2,1885.1,1.06093]
[1742134805055,1.3928,1885.2,1885.1,1.06093]
[1742134805255,2.45371,1885.2,1885.0,1.06094]
[1742134805555,2.45371,1885.2,1885.1,1.06093]
[1742134806054,2.45372,1885.2,1884.8,2.65262]
[1742134806256,1.3771,1885.1,1885.0,1.06098]
[1742134808258,2.43803,1885.1,1885.0,1.06098]
[1742134808456,1.3771,1885.1,1885.0,1.06098]
[1742134810661,2.43803,1885.1,1885.0,1.06098]
[1742134810853,1.3771,1885.1,1885.0,1.06098]
[1742134811961,2.43803,1885.1,1885.0,1.06098]
[1742134812161,1.3771,1885.1,1885.0,1.06098]
[1742134812364,1.3771,1885.1,1885.0,1.73018]
[1742134813858,1.3771,1885.1,1885.0,3.12878]
[1742134819466,1.06079,1885.4,1885.3,1.06081]
[1742134820357,1.06075,1885.5,1885.4,1.06072]
[1742134820966,3.79505,1885.5,1885.4,1.06072]
[1742134822858,3.795,1885.5,1885.4,1.06072]
[1742134823264,2.7343,1885.5,1885.4,1.06072]
[1742134823571,1.3229,1885.5,1885.4,2.43972]
[1742134824066,0.6712,1885.7,1885.6,1.06064]
[1742134824261,0.6858,1885.9,1885.8,1.06053]
[1742134824462,3.2078,1886.0,1885.9,1.06048]
[1742134824665,1.3338,1886.1,1886.0,1.06042]
[1742134824865,6.88625,1886.3,1886.2,1.06031]
[1742134825072,1.72285,1886.3,1886.2,1.06031]
[1742134825866,1.06031,1886.2,1886.1,2.38902]
[1742134826065,1.06036,1886.1,1886.0,1.3768]
[1742134826263,1.74766,1886.1,1886.0,2.7055]
[1742134826459,1.74766,1886.1,1885.9,4.64643]
[1742134826460,1.06042,1886.0,1885.9,3.586]
[1742134826662,1.06048,1885.9,1885.8,1.06051]
[1742134828359,2.40895,1886.0,1885.9,1.06048]
[1742134828768,1.06048,1885.9,1885.8,3.06819]
[1742134828955,1.3995,1885.9,1885.8,3.06819]
[1742134829467,8.47556,1887.1,1885.8,11.09189724]
[1742134829763,8.47556,1887.1,1886.6,1.06008]
[1742134829764,1.3995,1886.7,1886.6,1.06008]
[1742134830358,2.45953,1886.7,1886.6,1.3403]
[1742134830558,2.45953,1886.7,1886.6,2.40038]
[1742134830768,1.3995,1886.7,1886.6,1.3403]
[1742134830967,1.3995,1886.7,1886.6,2.40038]
[1742134833461,2.45953,1886.7,1886.6,2.40038]
[1742134833662,1.3995,1886.7,1886.6,1.06008]
[1742134833861,2.45953,1886.7,1886.6,1.06008]
[1742134834169,1.3995,1886.7,1886.6,1.06008]
[1742134834569,3.15443,1886.7,1886.6,1.06008]
[1742134834764,2.0944,1886.7,1886.6,1.06008]
[1742134835367,3.15443,1886.7,1886.6,1.06008]
[1742134835568,3.15443,1886.7,1886.5,1.3633]
[1742134835872,1.4481,1886.6,1886.5,2.42339]
[1742134836566,2.1456,1886.6,1886.5,1.06014]
[1742134836767,2.1456,1886.6,1886.4,2.49155]
[1742134837066,1.4481,1886.5,1886.4,2.49155]
[1742134837568,2.50824,1886.5,1886.4,2.49155]
[1742134837774,2.50824,1886.5,1886.4,1.06015]
[1742134839764,1.06019,1886.4,1886.3,0.0079658]
[1742134839970,1.06042,1886.0,1885.9,1.06043]
[1742134840165,1.06038,1886.1,1886.0,1.06037]
[1742134840759,2.48948,1886.1,1886.0,1.06037]
[1742134840970,1.4291,1886.1,1886.0,1.06037]
[1742134841170,2.48946,1886.1,1886.0,1.06037]
[1742134842071,1.4291,1886.1,1886.0,1.06037]
[1742134842873,2.48946,1886.1,1886.0,1.06037]
[1742134843570,1.4291,1886.1,1886.0,1.06037]
[1742134843766,2.48946,1886.1,1886.0,1.06037]
[1742134843969,1.4291,1886.1,1886.0,1.06037]
[1742134844168,1.4291,1886.1,1886.0,1.74407]
[1742134844367,2.48946,1886.1,1886.0,1.74407]
[1742134844568,2.48946,1886.1,1886.0,0.6837]
[1742134844873,2.48946,1886.1,1885.9,2.4282958]
[1742134844874,1.06042,1886.0,1885.9,2.4282958]
[1742134845169,2.38552,1886.0,1885.9,2.4282958]
[1742134845677,2.38552,1886.0,1885.9,0.0079658]
[1742134846975,2.38552,1886.0,1885.9,1.0684458]
[1742134847474,2.38552,1886.0,1885.9,0.0079658]
[1742134847673,2.38552,1886.0,1885.9,1.3455658]
[1742134849081,2.38552,1886.0,1885.9,2.4060458]
[1742134849784,2.38552,1886.0,1885.9,1.3455658]
[1742134850083,2.38552,1886.0,1885.9,2.4060458]
[1742134850580,1.3251,1886.0,1885.9,2.4060458]
[1742134852486,2.38552,1886.0,1885.9,2.4060458]
[1742134853294,1.3251,1886.0,1885.9,2.4060458]
[1742134853793,2.38552,1886.0,1885.9,2.4060458]
[1742134854192,1.3251,1886.0,1885.9,2.4060458]
[1742134854582,2.38552,1886.0,1885.9,2.4060458]
[1742134855697,1.3251,1886.0,1885.9,2.4060458]
[1742134855898,0.7142658,1886.2,1886.1,1.06036]
[1742134855899,0.0079658,1886.2,1886.1,1.06036]
[1742134856106,2.5016058,1886.2,1886.0,2.1459]
[1742134856389,2.5016058,1886.2,1886.1,1.4605]
[1742134856390,1.0683058,1886.2,1886.1,1.4605]
[1742134858892,1.0683058,1886.2,1886.1,2.52086]
[1742134859493,1.0683058,1886.2,1886.1,1.4605]
[1742134860395,1.06042,1886.0,1885.9,1.0683958]
[1742134860595,1.06042,1886.0,1885.9,2.4293958]
[1742134862203,1.06042,1886.0,1885.9,1.3689658]
[1742134862606,1.06042,1886.0,1885.9,2.4294458]
[1742134863700,1.06042,1886.0,1885.9,1.3689658]
[1742134864305,1.06042,1886.0,1885.9,0.0079658]
[1742134865295,1.06042,1886.0,1885.9,1.3450658]
[1742134865701,1.06042,1886.0,1885.9,0.0079658]
[1742134866702,1.06042,1886.0,1885.9,1.3450658]
[1742134867011,1.06042,1886.0,1885.9,0.0079658]
[1742134867999,4.26822,1886.0,1885.9,0.0079658]
[1742134868811,4.26822,1886.0,1885.4,3.2078]
[1742134868812,1.0607,1885.5,1885.4,3.2078]
[1742134869109,1.0607,1885.5,1885.4,1.3465]
[1742134870309,1.7618,1885.5,1885.4,1.3465]
[1742134870704,3.2104,1885.5,1885.4,1.3465]
[1742134870900,1.06076,1885.4,1885.3,1.4046658]
[1742134871208,2.47206,1885.4,1885.3,3.8113758]
[1742134871604,2.47206,1885.4,1885.3,2.7505658]
[1742134872204,2.47206,1885.4,1885.3,0.0079658]
[1742134874111,1.4113,1885.4,1885.3,1.0687758]
[1742134874613,2.47206,1885.4,1885.3,3.1673758]
[1742134874910,6.5107,1885.6,1885.5,1.0607]
[1742134874911,5.826,1885.6,1885.5,1.0607]
[1742134875114,1.06059,1885.7,1885.6,1.06059]
[1742134875416,2.41537,1885.8,1885.7,1.06059]
[1742134875805,2.41537,1885.8,1885.7,2.48209]
[1742134876110,4.26823,1886.0,1885.7,5.0035]
[1742134876303,4.26823,1886.0,1885.9,1.06048]
[1742134876505,5.62303,1886.0,1885.9,1.06048]
[1742134876705,5.62303,1886.0,1885.9,3.15908]
[1742134877710,4.5626,1886.0,1885.9,3.15908]
[1742134877908,6.5229658,1886.2,1886.1,1.06036]
[1742134877909,6.8942958,1886.2,1886.1,1.06036]
[1742134878118,1.4627658,1886.2,1886.1,1.06036]
[1742134878609,2.5230758,1886.2,1886.1,1.06036]
[1742134878815,1.4627658,1886.2,1886.1,1.06036]
[1742134879214,2.5230758,1886.2,1886.1,1.06036]
[1742134879519,1.4627658,1886.2,1886.1,2.52076]
[1742134881315,0.0079658,1886.2,1886.1,2.52076]
[1742134881514,7.57513,1886.6,1886.1,5.72856]
[1742134881813,1.4246,1886.5,1886.4,1.06016]
[1742134882012,6.88597,1886.8,1886.7,1.06003]
[1742134882214,6.88597,1886.8,1886.6,1.06004]
[1742134882215,2.48457,1886.8,1886.6,1.06004]
[1742134882415,2.48457,1886.8,1886.7,1.3417]
[1742134883307,1.4246,1886.8,1886.7,2.40173]
[1742134883507,2.48457,1886.8,1886.7,2.40173]
[1742134883908,2.48457,1886.8,1886.7,1.3417]
[1742134884309,1.06003,1886.7,1886.6,0.0079658]
[1742134884515,2.39183,1886.7,1886.6,0.0079658]
[1742134887118,8.21783,1886.7,1886.6,0.0079658]
[1742134888319,11.42563,1886.7,1886.6,0.0079658]
[1742134891923,8.21783,1886.7,1886.6,0.0079658]
[1742134892426,11.42563,1886.7,1886.6,0.0079658]
[1742134895330,11.42563,1886.7,1886.6,1.4387658]
[1742134896231,11.42563,1886.7,1886.6,0.0079658]
[1742134898129,1.06025,1886.3,1886.2,1.76376]
[1742134898428,1.06025,1886.3,1886.2,2.43106]
[1742134899422,2.45655,1886.3,1886.2,3.75236]
[1742134899931,2.45655,1886.3,1886.2,2.6921]
[1742134900320,1.06031,1886.2,1886.1,0.0079658]
[1742134900520,2.45661,1886.2,1886.1,1.3292658]
[1742134901129,2.45661,1886.2,1886.1,2.3896158]
[1742134901728,2.45661,1886.2,1886.1,0.0079658]
[1742134903031,2.45661,1886.2,1886.1,1.0683258]
[1742134903234,1.06029,1886.3,1886.2,1.06031]
[1742134903435,2.50999,1886.3,1886.2,3.17851]
[1742134904427,2.50999,1886.3,1886.2,2.1182]
[1742134904829,2.50999,1886.3,1886.2,3.17851]
[1742134905429,2.50999,1886.3,1886.2,2.1182]
[1742134905832,6.88625,1886.4,1886.2,2.1182]
[1742134906033,8.24625,1886.4,1886.3,1.3315]
[1742134907436,2.42025,1886.4,1886.3,1.3315]
[1742134908937,1.36,1886.4,1886.3,2.39175]
[1742134909140,1.77682,1886.6,1886.5,1.06014]
[1742134909344,1.06012,1886.6,1886.5,1.06014]
[1742134910234,5.826,1886.8,1886.7,1.06003]
[1742134910434,1.05999,1886.8,1886.6,0.6892]
[1742134910737,1.05999,1886.8,1886.7,1.05997]
[1742134911036,1.0679258,1886.9,1886.8,1.05997]
[1742134911635,1.0679258,1886.9,1886.8,2.45337]
[1742134913334,1.0679258,1886.9,1886.8,1.3934]
[1742134914735,1.05997,1886.8,1886.7,1.7479]
[1742134915332,1.05997,1886.8,1886.7,0.6879]
[1742134915528,1.06018,1886.5,1886.4,1.06015]
[1742134915733,1.06018,1886.5,1886.4,0.6826]
[1742134916238,1.06018,1886.5,1886.4,2.0737]
[1742134917139,1.06018,1886.5,1886.4,3.13389]
[1742134919941,13.01799,1886.7,1886.5,1.0601]
[1742134919942,1.06013,1886.6,1886.5,1.0601]
[1742134920242,1.06013,1886.6,1886.5,1.4202]
[1742134920645,1.75953,1886.6,1886.5,1.4202]
[1742134921038,1.06019,1886.4,1886.3,1.72111]
[1742134921237,1.06019,1886.4,1886.3,2.0811]
[1742134923042,1.06019,1886.4,1886.3,3.14135]
[1742134923644,1.06019,1886.4,1886.3,2.0811]
[1742134925938,1.06025,1886.3,1886.2,0.6814]
[1742134926146,1.06025,1886.3,1886.2,2.1416]
[1742134926631,1.06025,1886.3,1886.2,3.20191]
[1742134926831,1.06025,1886.3,1886.2,2.1416]
[1742134927033,1.06031,1886.2,1886.1,0.0079658]
[1742134927236,1.74701,1886.2,1886.1,0.0079658]
[1742134928143,1.06059,1885.7,1885.6,4.6386]
[1742134928356,1.06059,1885.7,1885.6,7.5077]
[1742134928642,1.06059,1885.7,1885.6,3.9297]
[1742134930947,2.41229,1885.7,1885.6,3.9297]
[1742134931442,1.3517,1885.7,1885.6,3.9297]
[1742134931841,0.0079658,1885.8,1885.7,1.06059]
[1742134932046,1.06038,1886.1,1886.0,1.06042]
[1742134932248,2.47828,1886.1,1886.0,1.06042]
[1742134932634,1.4179,1886.1,1886.0,3.10352]
[1742134933342,2.47826,1886.1,1886.0,3.10352]
[1742134933543,1.4179,1886.1,1886.0,3.10352]
[1742134933946,2.47826,1886.1,1886.0,3.10352]
[1742134935037,1.4179,1886.1,1886.0,3.10352]
[1742134935443,0.0079658,1886.2,1886.1,1.06036]
[1742134935651,1.3687658,1886.2,1886.1,2.50736]
[1742134936149,2.4290758,1886.2,1886.1,2.50736]
[1742134936844,2.4290758,1886.2,1886.1,1.447]
[1742134937347,2.4290758,1886.2,1886.1,2.50736]
[1742134938450,0.0079658,1886.2,1886.1,2.50736]
[1742134938639,0.0079658,1886.2,1886.1,6.08436]
[1742134938846,0.0079658,1886.2,1886.1,9.29216]
[1742134940252,5.826,1887.0,1886.7,1.06]
[1742134940451,2.43852,1886.8,1886.5,3.2078]
[1742134940657,1.3785,1886.7,1886.6,3.15243]
[1742134941359,2.43853,1886.7,1886.6,3.15243]
[1742134941548,1.3785,1886.7,1886.6,3.15243]
[1742134942147,2.43853,1886.7,1886.6,3.15243]
[1742134942555,1.3785,1886.7,1886.6,3.15243]
[1742134942753,2.43853,1886.7,1886.6,3.15243]
[1742134942948,1.06008,1886.6,1886.5,3.2157658]
[1742134943151,3.12748,1886.6,1886.5,1.0681058]
[1742134943550,3.12748,1886.6,1886.5,3.1171058]
[1742134944457,3.12748,1886.6,1886.5,2.0569658]
[1742134944659,3.12748,1886.6,1886.5,2.4044058]
[1742134945055,3.12748,1886.6,1886.5,0.0079658]
[1742134945456,3.12748,1886.6,1886.5,1.0681058]
[1742134945659,3.12748,1886.6,1886.5,2.4548058]
[1742134946250,1.3506,1886.6,1886.5,5.6626058]
[1742134946569,1.7778658,1886.8,1886.7,1.06003]
[1742134947256,0.0079658,1886.8,1886.7,4.95593]
[1742134948461,1.3374,1887.0,1886.9,1.05991]
[1742134948651,2.39726,1887.0,1886.9,1.05991]
[1742134949156,3.07746,1887.0,1886.9,2.48631]
[1742134949657,3.07746,1887.0,1886.9,1.4264]
[1742134950060,3.07746,1887.0,1886.9,2.48631]
[1742134950267,3.07746,1887.0,1886.9,1.4264]
[1742134950463,3.0775,1887.0,1886.9,1.05991]
[1742134950763,3.0775,1887.0,1886.9,2.38371]
[1742134951667,3.0775,1887.0,1886.9,1.3238]
[1742134952657,3.0775,1887.0,1886.9,2.38371]
[1742134953970,3.0775,1887.0,1886.9,1.3238]
[1742134954868,3.0775,1887.0,1886.9,2.38371]
[1742134956273,3.0775,1887.0,1886.9,1.3238]
[1742134957564,3.0775,1887.0,1886.9,2.38371]
[1742134958572,1.05994,1886.9,1886.8,1.05993]
[1742134958773,2.45944,1886.9,1886.8,1.05993]
[1742134959071,2.45944,1886.9,1886.8,2.45023]
[1742134960271,1.3995,1886.9,1886.8,2.45023]
[1742134960877,1.3367,1887.1,1887.0,1.05984]
[1742134961063,2.3965,1887.1,1887.0,1.05984]
[1742134961578,2.3965,1887.1,1887.0,2.45014]
[1742134964474,1.3367,1887.1,1887.0,2.45014]
[1742134964674,1.3367,1887.1,1887.0,3.18124]
[1742134964875,1.76633,1887.3,1887.2,1.05974]
[1742134965974,1.05974,1887.2,1887.1,2.39997]
[1742134966182,2.49514,1887.2,1887.1,2.39997]
[1742134967381,1.4354,1887.2,1887.1,2.39997]
[1742134968077,2.49514,1887.2,1887.1,1.3402]
[1742134968282,1.0598,1887.1,1887.0,5.3789]
[1742134968577,3.1028,1887.1,1887.0,6.43876]
[1742134968975,2.043,1887.1,1887.0,6.43876]
[1742134969176,1.3168,1887.1,1887.0,6.43876]
[1742134970185,2.3766,1887.1,1887.0,6.43876]
[1742134970886,1.3168,1887.1,1887.0,6.43876]
[1742134972975,2.3766,1887.1,1887.0,6.43876]
[1742134979894,2.3766,1887.1,1887.0,5.3789]
[1742134980081,2.3766,1887.1,1887.0,2.1711]
[1742134980277,2.3766,1887.1,1887.0,3.23096]
[1742134981290,1.3168,1887.1,1887.0,3.23096]
[1742134981896,2.3766,1887.1,1887.0,3.23096]
[1742134982797,1.05986,1887.0,1886.9,1.76419]
[1742134982998,3.13816,1887.0,1886.9,3.11669]
[1742134984403,2.0783,1887.0,1886.9,3.11669]
[1742134984696,1.3697,1887.0,1886.9,3.11669]
[1742134985088,2.42956,1887.0,1886.9,3.11669]
[1742134985497,1.3697,1887.0,1886.9,3.11669]
[1742134987689,1.73739,1887.2,1886.9,4.70658]
[1742134987989,1.443,1887.1,1887.0,3.07466]
[1742134989301,1.443,1887.1,1887.0,6.28246]
[1742134996302,1.05973,1887.3,1887.2,1.0597]
[1742134996703,2.47123,1887.4,1887.3,1.05969]
[1742134997607,1.3754,1887.4,1887.3,2.46049]
[1742134997900,0.7283,1887.6,1887.5,1.05958]
[1742134998097,6.5479,1887.9,1887.5,1.05958]
[1742134998098,1.3754,1887.7,1887.6,1.05952]
[1742134998407,0.02163,1888.0,1887.9,1.05935]
[1742134998600,0.02163,1888.0,1887.7,3.571]
[1742134998798,0.02163,1888.0,1887.9,1.05935]
[1742134999111,1.05938,1887.9,1887.8,4.26717]
[1742134999297,0.02163,1888.0,1887.9,1.05935]
[1742134999811,1.448,1888.0,1887.9,2.41305]
[1742135000209,2.5073,1888.0,1887.9,2.41305]
[1742135000998,2.5073,1888.0,1887.9,1.3537]
[1742135001198,2.5073,1888.0,1887.9,2.41305]
[1742135001610,1.05935,1887.9,1887.8,4.26716]
[1742135001906,2.41625,1887.9,1887.8,5.63846]
[1742135002096,2.41625,1887.9,1887.8,3.2078]
[1742135002794,1.05952,1887.6,1887.5,3.2157658]
[1742135003899,1.05952,1887.6,1887.5,4.2753458]
[1742135004409,1.05952,1887.6,1887.5,3.2157658]
[1742135004711,1.05952,1887.6,1887.5,0.0079658]
[1742135005702,2.44622,1887.6,1887.5,0.0079658]
[1742135009612,2.44622,1887.6,1887.2,1.05974]
[1742135009613,1.05969,1887.3,1887.2,1.05974]
[1742135010507,1.05974,1887.2,1887.1,6.99386]
[1742135010710,1.05974,1887.2,1887.1,6.2858258]
[1742135011006,1.75034,1887.2,1887.1,0.0079658]
[1742135011413,1.05991,1886.9,1886.8,2.0428]
[1742135011809,1.05997,1886.8,1886.7,2.12150644]
[1742135012009,1.06003,1886.7,1886.6,1.76836]
[1742135012311,1.06003,1886.7,1886.6,2.0428]
[1742135012911,1.06003,1886.7,1886.6,3.10288]
[1742135013509,1.06003,1886.7,1886.6,2.0428]
[1742135013705,1.06003,1886.7,1886.6,3.10288]
[1742135015320,8.47538,1887.2,1886.6,6.31068]
[1742135015503,8.47538,1887.2,1886.8,1.05997]
[1742135015504,2.42291,1886.9,1886.8,1.05997]
[1742135015910,1.363,1886.9,1886.7,1.3459]
[1742135016116,1.05987,1887.0,1886.9,1.05989]
[1742135016315,1.05991,1886.9,1886.8,3.2078]
[1742135016503,4.01266,1887.0,1886.6,3.9161]
[1742135016708,1.06001,1886.8,1886.7,1.06002]
[1742135017207,1.06002,1886.8,1886.7,1.06001]
[1742135017803,1.06002,1886.8,1886.7,2.52241]
[1742135018216,2.48145,1886.9,1886.8,1.05997]
[1742135018417,2.48145,1886.9,1886.8,2.52237]
[1742135018714,5.826,1887.1,1886.8,4.6702]
[1742135019016,7.2475,1887.1,1887.0,1.05986]
[1742135019214,1.3611,1887.3,1887.0,1.05986]
[1742135019215,1.3611,1887.3,1887.2,1.05974]
[1742135019404,0.0079658,1887.4,1887.3,1.05969]
[1742135020012,0.0079658,1887.4,1887.1,7.68188]
[1742135020013,1.05942,1887.8,1887.7,1.05941]
[1742135020923,7.1777,1888.0,1887.7,1.3253]
[1742135021218,8.23704,1888.0,1887.9,1.05935]
[1742135021411,1.05935,1887.9,1887.8,4.26715]
[1742135021709,1.05935,1887.9,1887.8,4.2461]
[1742135022218,7.1856658,1888.0,1887.8,1.05935]
[1742135022919,1.05935,1887.9,1887.8,1.05935]
[1742135023515,7.1856658,1888.0,1887.7,4.8953]
[1742135023715,1.05937,1887.9,1887.8,1.05936]
[1742135025619,2.4190058,1888.0,1887.9,1.05935]
[1742135027019,1.0673058,1888.0,1887.9,1.05935]
[1742135027615,1.05938,1887.9,1887.8,1.05936]
[1742135027815,1.0673058,1888.0,1887.9,1.05935]
[1742135029126,0.0079658,1888.0,1887.9,1.05935]
[1742135029422,1.0672658,1888.0,1887.9,1.05935]
[1742135030022,0.0079658,1888.0,1887.9,3.11875]
[1742135030822,1.05903,1888.5,1888.0,2.64817]
[1742135031028,2.41223,1888.5,1888.4,1.05904]
[1742135031221,2.41223,1888.5,1888.1,11.46668]
[1742135031526,2.41222,1888.5,1888.4,1.05907]
[1742135031927,2.41222,1888.5,1888.4,2.41337]
[1742135032222,1.05902,1888.5,1888.4,1.3543]
[1742135033019,1.05907,1888.4,1888.3,0.7051]
[1742135033224,1.05907,1888.4,1888.3,2.0924]
[1742135034120,1.05907,1888.4,1888.3,3.15153]
[1742135034623,1.05907,1888.4,1888.3,2.0924]
[1742135034925,1.05907,1888.4,1888.3,3.15153]
[1742135035120,1.05907,1888.4,1888.3,2.0924]
[1742135035315,1.3781,1888.5,1888.3,3.15153]
[1742135035520,2.43713,1888.5,1888.4,2.43427]
[1742135036723,1.05907,1888.4,1888.3,1.7642]
[1742135036928,2.40077,1888.4,1888.3,3.1394]
[1742135037425,1.3417,1888.4,1888.3,3.1394]
[1742135037628,1.05907,1888.4,1888.3,6.34718]
[1742135037826,1.3417,1888.4,1888.3,3.13943]
[1742135038331,3.35821,1888.7,1888.3,3.13943]
[1742135038332,1.76985,1888.7,1888.6,1.05896]
[1742135038524,0.7109,1888.7,1888.4,2.42695]
[1742135038829,1.05899,1888.6,1888.4,1.05907]
[1742135039222,1.05899,1888.6,1888.5,1.05902]
[1742135039726,1.05902,1888.5,1888.4,2.42693]
[1742135039933,1.05902,1888.5,1888.4,1.3679]
[1742135040227,1.05907,1888.4,1888.3,0.7051]
[1742135040423,2.48687,1888.4,1888.3,0.7051]
[1742135040624,1.05913,1888.3,1888.2,1.3679]
[1742135040931,2.48693,1888.3,1888.2,1.3679]
[1742135041134,1.05918,1888.2,1888.1,1.05924]
[1742135041327,2.48438,1888.2,1888.1,1.05924]
[1742135041826,2.48438,1888.2,1887.8,3.567]
[1742135041827,1.05928,1888.1,1887.8,3.567]
[1742135042142,1.4252,1888.1,1887.9,4.26711]
[1742135042432,1.0593,1888.0,1887.9,5.65641]
[1742135042731,1.4252,1888.1,1887.9,4.5971]
[1742135042921,1.0593,1888.0,1887.9,4.5971]
[1742135044332,1.0593,1888.0,1887.9,1.3893]
[1742135046941,1.05935,1887.9,1887.8,4.26721]
[1742135047131,2.42665,1887.9,1887.8,5.70931]
[1742135047834,1.3673,1887.9,1887.8,5.70931]
[1742135048635,1.05931,1888.0,1887.9,1.05935]
[1742135048837,1.05931,1888.0,1887.9,1.3314]
[1742135049539,1.05931,1888.0,1887.9,2.39075]
[1742135050235,1.05931,1888.0,1887.9,1.3314]
[1742135050437,1.05935,1887.9,1887.8,4.26716]
[1742135050639,2.49955,1887.9,1887.8,4.5524]
[1742135050833,1.05941,1887.8,1887.7,1.3457]
[1742135051037,1.05946,1887.7,1887.6,0.0079658]
[1742135051235,1.74946,1887.7,1887.6,0.0079658]
[1742135051537,3.18966,1887.7,1887.6,0.0079658]
[1742135054942,3.18966,1887.7,1887.6,1.3713658]
[1742135056941,3.18966,1887.7,1887.6,0.0079658]
[1742135057743,5.68966,1887.7,1887.6,0.0079658]
[1742135058047,3.18966,1887.7,1887.6,1.0674858]
[1742135058548,3.18966,1887.7,1887.6,0.0079658]
[1742135058743,3.18966,1887.7,1887.6,1.4189658]
[1742135059146,3.18966,1887.7,1887.6,2.4784858]
[1742135059652,3.18966,1887.7,1887.6,1.4189658]
[1742135060441,1.05938,1887.9,1887.8,1.05935]
[1742135060644,1.05935,1888.0,1887.9,1.05932]
[1742135061747,2.38455,1888.0,1887.9,1.05932]
[1742135062253,2.3845,1888.0,1887.9,1.05932]
[1742135062746,2.3845,1888.0,1887.9,2.43572]
[1742135063546,1.3252,1888.0,1887.9,2.43572]
[1742135065158,1.75058,1888.1,1887.9,2.43572]
[1742135065159,0.6632,1888.3,1888.2,1.05918]
[1742135066051,1.05918,1888.2,1888.1,1.72149]
[1742135066448,2.45148,1888.2,1888.1,3.04839]
[1742135066865,2.45148,1888.2,1888.1,1.9892]
[1742135067167,2.45148,1888.2,1888.1,3.04844]
[1742135067363,2.45148,1888.2,1888.1,1.9892]
[1742135067753,1.05924,1888.1,1888.0,0.6625]
[1742135067960,2.45154,1888.1,1888.0,1.7218]
[1742135068466,2.45154,1888.1,1888.0,3.0487]
[1742135069467,1.3923,1888.1,1888.0,3.0487]
[1742135070679,2.45154,1888.1,1888.0,3.0487]
[1742135072370,2.45154,1888.1,1888.0,1.9894]
[1742135072569,2.45154,1888.1,1888.0,1.3269]
[1742135072771,1.0593,1888.0,1887.9,3.2118]
[1742135072978,2.5101,1888.0,1887.9,3.2118]
[1742135073875,2.5101,1888.0,1887.9,2.1525]
[1742135074178,1.05935,1887.9,1887.8,8.53276]
[1742135074376,3.21245,1887.9,1887.8,9.98706]
[1742135074676,3.21245,1887.9,1887.8,9.28746]
[1742135075175,3.21245,1887.9,1887.8,2.51366]
[1742135075379,1.05941,1887.8,1887.7,4.2863]
[1742135075679,2.44351,1887.8,1887.7,5.34576]
[1742135075886,1.05946,1887.7,1887.6,3.9153658]
[1742135076181,2.44356,1887.7,1887.6,0.0079658]
[1742135080287,2.44356,1887.7,1887.6,1.3985658]
[1742135080968,2.44356,1887.7,1887.6,0.0079658]
[1742135081380,5.65136,1887.7,1887.6,0.0079658]
[1742135081884,8.15136,1887.7,1887.6,0.0079658]
[1742135082774,5.65136,1887.7,1887.6,0.0079658]
[1742135087386,5.65136,1887.7,1887.6,1.3904658]
[1742135087592,5.65136,1887.7,1887.6,3.8543858]
[1742135087781,5.65136,1887.7,1887.6,2.7948658]
[1742135088181,2.44356,1887.7,1887.6,3.8543858]
[1742135088382,1.05945,1887.8,1887.7,1.05941]
[1742135088582,2.49045,1887.8,1887.7,2.44191]
[1742135091595,2.49041,1887.8,1887.7,2.44191]
[1742135091895,1.05939,1887.9,1887.8,1.05936]
[1742135092097,2.51649,1887.9,1887.8,2.47796]
[1742135095292,2.51649,1887.9,1887.8,1.4186]
[1742135095495,2.51649,1887.9,1887.8,2.47801]
[1742135096096,2.51649,1887.9,1887.8,1.4186]
[1742135096296,2.51649,1887.9,1887.8,2.47801]
[1742135096498,2.51649,1887.9,1887.8,1.4186]
[1742135099390,2.51649,1887.9,1887.8,2.47801]
[1742135099603,2.51649,1887.9,1887.8,1.4186]
[1742135099797,1.4571,1887.9,1887.6,5.6796558]
[1742135100100,1.05946,1887.7,1887.6,2.4718558]
[1742135100600,2.43316,1887.7,1887.6,2.4718558]
[1742135101903,2.43316,1887.7,1887.6,0.0079658]